[Event "47th GRE-chT 2019"]
[Site "Patra"]
[Date "2019.07.02"]
[Round "1.40"]
[White "Antonioudakis, Georgios"]
[Black "Violakis, Anastasios"]
[Result "1-0"]
[ECO "B70"]
[WhiteElo "1385"]
[BlackElo "1431"]
[Annotator "NA"]
[PlyCount "81"]
[EventDate "2019.07.02"]
[EventCountry "GRE"]
[SourceTitle "playchess.com"]
[Source "ChessBase"]
[SourceQuality "1"]
[TimeControl "5400+30"]

1. e4 {[%emt 0:00:00]} g6 {[%emt 0:00:00]} 2. d4 {[%emt 0:00:00]} Bg7 {[%emt 0:00:00]} 3. Nc3 {[%emt 0:00:12]} d6 {[%emt 0:00:13]} 4. Bc4 {[%emt 0:00:50]} Nf6 {[%emt 0:01:32]} 5. Nge2 {[%emt 0:00:35]} O-O {[%emt 0:00:40]} 6. O-O {[%emt 0:00:05]} Nbd7 {[%emt 0:00:57]} 7. h3 {[%emt 0:02:31]} c5 {[%emt 0:00:55]} 8. Bb3 {[%emt 0:00:30]} cxd4 {[%emt 0:00:30]} 9. Nxd4 {[%emt 0:00:30]} Nc5 {[%emt 0:00:30]} 10. Re1 {[%emt 0:00:30]} Bd7 {[%emt 0:00:30]} 11. Bg5 {[%emt 0:00:30]} Bc8 {[%emt 0:21:34]} 12. Bc1 Bd7 {[%emt 0:00:00]} 13. Bg5 {[%emt 0:13:00]} Bc6 {[%emt 0:00:00]} 14. Nxc6 {[%emt 0:00:36]} bxc6 {[%emt 0:00:00]} 15. Qe2 {[%emt 0:00:58]} h6 {[%emt 0:07:23]} 16. Be3 {[%emt 0:04:28]} Ncd7 {[%emt 0:01:49]} 17. Rad1 {[%emt 0:01:47]} Qc7 {[%emt 0:07:04]} 18. f4 {[%emt 0:02:31]} Rad8 {[%emt 0:11:23]} 19. Bc1 {[%emt 0:01:15]} Ne8 {[%emt 0:11:29]} 20. Qg4 {[%emt 0:05:32]} Qb8 {[%emt 0:08:43]} 21. Qxg6 {[%emt 0:01:24]} Qxb3 {[%emt 0:03:24]} 22. Qxg7+ {[%emt 0:00:08]} Nxg7 {[%emt 0:00:27]} 23. axb3 {[%emt 0:00:06]} Nb6 {[%emt 0:02:56]} 24. Be3 {[%emt 0:01:00]} e6 {[%emt 0:00:54]} 25. Ra1 {[%emt 0:00:30]} Rd7 {[%emt 0:03:47]} 26. Ra6 {[%emt 0:00:09]} Rb8 {[%emt 0:00:58]} 27. Rea1 {[%emt 0:00:41]} Rbb7 {[%emt 0:00:47]} 28. Bxb6 {[%emt 0:02:02]} axb6 {[%emt 0:00:03]} 29. Ra8+ {[%emt 0:00:43]} Kh7 {[%emt 0:00:02]} 30. Rc8 {[%emt 0:00:08]} Rdc7 {[%emt 0:00:47]} 31. Raa8 {[%emt 0:00:26]} b5 {[%emt 0:04:20]} 32. Rh8+ {[%emt 0:00:17]} Kg6 {[%emt 0:00:04]} 33. Rag8 {[%emt 0:09:36]} f6 {[%emt 0:05:12]} 34. g4 {[%emt 0:03:35]} Kf7 {[%emt 0:01:55]} 35. e5 {[%emt 0:01:22]} fxe5 {[%emt 0:00:36]} 36. Ne4 {[%emt 0:01:41]} Rd7 {[%emt 0:01:41]} 37. g5 {[%emt 0:01:01]} h5 {[%emt 0:01:20]} 38. Nf6 {[%emt 0:00:21]} Re7 {[%emt 0:00:46]} 39. Ne4 {[%emt 0:17:18]} Red7 {[%emt 0:00:46]} 40. Rf8+ {[%emt 0:00:18]} Ke7 {[%emt 0:00:04]} 41. g6 {[%emt 0:00:12]} 1-0

[Event "47th GRE-chT 2019"]
[Site "Patra"]
[Date "2019.07.03"]
[Round "2.2"]
[White "Galopoulos, Nikolaos"]
[Black "Shoker, Samy"]
[Result "0-1"]
[ECO "A41"]
[WhiteElo "2361"]
[BlackElo "2496"]
[Annotator "ChessBase"]
[PlyCount "90"]
[EventDate "2019.07.02"]
[EventCountry "GRE"]
[SourceTitle "playchess.com"]
[Source "ChessBase"]
[SourceQuality "1"]
[TimeControl "5400+30"]

1. d4 {[%emt 0:00:00]} d6 {[%emt 0:00:00]} 2. Nf3 {[%emt 0:00:00]} Nf6 {[%emt 0:00:03]} 3. g3 {[%emt 0:00:02]} g6 {[%emt 0:00:12]} 4. Bg2 {[%emt 0:00:05]} Bg7 {[%emt 0:00:05]} 5. O-O {[%emt 0:00:19]} O-O {[%emt 0:00:06]} 6. b3 {[%emt 0:00:04]} c6 {[%emt 0:09:31]} 7. Bb2 {[%emt 0:01:05]} Qa5 {[%emt 0:00:31]} 8. Nbd2 {[%emt 0:01:50]} Qh5 {[%emt 0:01:17]} 9. e4 {[%emt 0:02:40]} Bg4 {[%emt 0:04:09]} 10. Qe2 {[%emt 0:08:46]} a5 {[%emt 0:17:22]} 11. Rfe1 {[%emt 0:08:13]} Na6 {[%emt 0:06:45]} 12. Rab1 {[%emt 0:15:36]} d5 {[%emt 0:20:57]} 13. exd5 {[%emt 0:02:37]} Nxd5 {[%emt 0:01:54]} 14. a3 {[%emt 0:10:11]} a4 {[%emt 0:09:16]} 15. c4 {[%emt 0:02:12]} Ndc7 {[%emt 0:01:44]} 16. bxa4 {[%emt 0:03:55]} Bf5 {[%emt 0:02:46]} 17. Rbc1 {[%emt 0:01:02]} Nc5 {[%emt 0:04:03]} 18. Qxe7 {[%emt 0:12:11]} N7e6 {[%emt 0:00:05]} 19. Rxe6 {[%emt 0:05:56]} Nxe6 {[%emt 0:01:34]} 20. Bc3 {[%emt 0:00:49]} Rab8 {[%emt 0:06:44]} 21. d5 {[%emt 0:03:41]} Rfe8 {[%emt 0:00:21]} 22. Qb4 {[%emt 0:00:08]} Bf8 {[%emt 0:01:27]} 23. d6 {[%emt 0:01:13]} Red8 {[%emt 0:05:00]} 24. c5 {[%emt 0:00:55]} b6 {[%emt 0:00:12]} 25. Ne5 {[%emt 0:00:43]} bxc5 {[%emt 0:00:32]} 26. Qxb8 {[%emt 0:00:54]} Rxb8 {[%emt 0:00:30]} 27. Nd7 {[%emt 0:00:04]} Bg7 {[%emt 0:01:36]} 28. Bxg7 {[%emt 0:00:39]} Kxg7 {[%emt 0:00:42]} 29. Nxb8 {[%emt 0:00:02]} Qg5 {[%emt 0:00:56]} 30. Rd1 {[%emt 0:01:18]} Qd8 {[%emt 0:00:23]} 31. Nxc6 {[%emt 0:07:29]} Qxd6 {[%emt 0:00:01]} 32. Na5 {[%emt 0:00:10]} Bc2 {[%emt 0:00:06]} 33. Nac4 {[%emt 0:00:04]} Qd4 {[%emt 0:00:59]} 34. Rc1 {[%emt 0:01:47]} Bxa4 {[%emt 0:00:02]} 35. Nf3 {[%emt 0:01:02]} Qd8 {[%emt 0:00:05]} 36. Nfe5 {[%emt 0:00:17]} Nd4 {[%emt 0:02:11]} 37. Rb1 {[%emt 0:00:12]} Bc2 {[%emt 0:00:24]} 38. Re1 {[%emt 0:00:31]} Bb3 {[%emt 0:00:24]} 39. Ne3 {[%emt 0:05:52]} Qa5 {[%emt 0:00:23]} 40. Ra1 {[%emt 0:00:00]} Qc3 {[%emt 0:00:00]} 41. Rb1 {[%emt 0:00:00]} Ba2 {[%emt 0:00:00]} 42. Rb7 {[%emt 0:00:00]} Qa1+ {[%emt 0:00:00]} 43. Bf1 {[%emt 0:00:00]} Ne2+ {[%emt 0:00:00]} 44. Kg2 {[%emt 0:00:00]} Nxg3 {[%emt 0:00:00]} 45. Bc4 {[%emt 0:00:00]} Bxc4 {[%emt 0:00:00]} 0-1

[Event "47th GRE-chT 2019"]
[Site "Patra"]
[Date "2019.07.03"]
[Round "2.3"]
[White "Kourousis, Epaminondas"]
[Black "Sandalakis, Angelos"]
[Result "0-1"]
[ECO "E16"]
[WhiteElo "2394"]
[BlackElo "2429"]
[Annotator "NA"]
[PlyCount "76"]
[EventDate "2019.07.02"]
[EventCountry "GRE"]
[SourceTitle "playchess.com"]
[Source "ChessBase"]
[SourceQuality "1"]
[TimeControl "5400+30"]

1. d4 {[%emt 0:00:00]} Nf6 {[%emt 0:00:00]} 2. c4 {[%emt 0:01:35]} e6 {[%emt 0:00:00]} 3. g3 {[%emt 0:03:05]} d5 {[%emt 0:00:31]} 4. Bg2 {[%emt 0:00:27]} Bb4+ {[%emt 0:01:02]} 5. Nd2 {[%emt 0:01:28]} O-O {[%emt 0:00:46]} 6. Ngf3 {[%emt 0:00:53]} b6 {[%emt 0:00:09]} 7. cxd5 {[%emt 0:04:40]} exd5 {[%emt 0:00:34]} 8. O-O {[%emt 0:00:12]} Bb7 {[%emt 0:00:47]} 9. Ne5 {[%emt 0:02:28]} Nbd7 {[%emt 0:00:54]} 10. Ndf3 {[%emt 0:02:13] E16: Queen's Indian: 4 g3 Bb7 5 Bg2 Bb4+} (10. Qa4 Qe7 11. Ndf3 Bd6 12. Nxd7 Nxd7 13. Bf4 Bxf4 14. gxf4 c5 15. e3 Rfc8 16. Rfd1 c4 17. a3 Bc6 {0-1 (49) Melkumyan,H (2619)-Matlakov,M (2707) Karlsruhe 2017}) 10... Bd6 {[%emt 0:04:38]} 11. Bg5 {[%emt 0:09:19]} Qe8 {[%emt 0:02:11]} 12. Bf4 {[%emt 0:03:14]} Ne4 {[%emt 0:10:45]} 13. Nxd7 $146 {[%emt 0:08:47]} ({Predecessor:} 13. Nd3 Qe7 14. Nd2 Rfe8 15. Re1 c5 16. dxc5 Ndxc5 17. Bxd6 Qxd6 18. Nxc5 Qxc5 {1-0 (49) Anastasian,A (2552)-Loew,G (2285) Dresden 2007}) 13... Qxd7 {[%emt 0:00:05]} 14. Bxd6 {[%emt 0:01:17]} Qxd6 {[%emt 0:02:08]} 15. Qa4 {[%emt 0:03:59]} c5 {[%emt 0:09:03]} 16. dxc5 {[%emt 0:01:51]} bxc5 {[%emt 0:01:26]} 17. Qc2 {[%emt 0:07:18]} Rfd8 {[%emt 0:04:09]} 18. Nd2 {[%emt 0:04:23]} Nf6 {[%emt 0:02:57]} 19. Rac1 {[%emt 0:01:03]} Rac8 {[%emt 0:00:25]} 20. Nb3 {[%emt 0:03:04]} Ba6 {[%emt 0:09:13]} 21. Nxc5 {[%emt 0:04:42]} Bxe2 {[%emt 0:03:53]} 22. Qxe2 {[%emt 0:05:45]} Rxc5 {[%emt 0:00:33]} 23. Rxc5 {[%emt 0:01:09]} Qxc5 $11 {[%emt 0:00:05]} 24. Qd2 {[%emt 0:01:43]} d4 {[%emt 0:14:35]} 25. Qd3 {[%emt 0:11:08]} g6 {[%emt 0:04:03]} 26. a3 {[%emt 0:01:02]} Ng4 {[%emt 0:01:31]} 27. b4 {[%emt 0:06:11]} Qd6 {[%emt 0:01:02]} 28. Re1 {[%emt 0:05:47]} Ne5 {[%emt 0:00:27]} 29. Qb5 {[%emt 0:01:11]} f6 {[%emt 0:02:24]} 30. f4 {[%emt 0:00:30]} Ng4 {[%emt 0:02:45]} 31. Qc6 {[%emt 0:01:44]} Qxc6 {[%emt 0:04:09]} 32. Bxc6 {[%emt 0:00:01]} d3 {[%emt 0:00:06]} 33. Re8+ {[%emt 0:03:47]} Rxe8 {[%emt 0:00:06]} 34. Bxe8 {[%emt 0:00:04]} Ne3 {[%emt 0:02:40]} 35. Ba4 {[%emt 0:00:11]} d2 {[%emt 0:01:21]} 36. Kf2 {[%emt 0:00:11]} d1=Q {[%emt 0:00:21]} 37. Bxd1 {[%emt 0:00:03]} Nxd1+ {[%emt 0:00:04]} 38. Ke2 {[%emt 0:01:04]} Nb2 {[%emt 0:00:08]} 0-1

[Event "47th GRE-chT 2019"]
[Site "Patra"]
[Date "2019.07.03"]
[Round "2.3"]
[White "Georgiev, Krum"]
[Black "Giannoulakis, Lampros"]
[Result "1/2-1/2"]
[ECO "B51"]
[WhiteElo "2323"]
[BlackElo "2305"]
[Annotator "NA"]
[PlyCount "78"]
[EventDate "2019.07.02"]
[EventCountry "GRE"]
[SourceTitle "playchess.com"]
[Source "ChessBase"]
[SourceQuality "1"]
[TimeControl "5400+30"]

1. e4 {[%emt 0:00:00]} c5 {[%emt 0:00:56]} 2. Nf3 {[%emt 0:00:00]} d6 {[%emt 0:00:05]} 3. Bb5+ {[%emt 0:01:41]} Nd7 {[%emt 0:00:40]} 4. d4 {[%emt 0:01:39]} cxd4 {[%emt 0:00:30]} 5. Qxd4 {[%emt 0:00:26]} a6 {[%emt 0:00:19]} 6. Bxd7+ {[%emt 0:00:46]} Bxd7 {[%emt 0:00:10]} 7. Nc3 {[%emt 0:01:44]} e5 {[%emt 0:00:34]} 8. Qd3 {[%emt 0:00:55]} h6 {[%emt 0:00:18]} 9. Nd2 {[%emt 0:04:21]} Rc8 {[%emt 0:12:26]} 10. O-O {[%emt 0:18:24]} Nf6 {[%emt 0:12:17]} 11. Nd1 {[%emt 0:03:50]} Be7 {[%emt 0:02:30]} 12. b3 {[%emt 0:04:20]} O-O {[%emt 0:02:06]} 13. Bb2 {[%emt 0:05:35]} b5 {[%emt 0:00:36]} 14. Ne3 {[%emt 0:09:27]} Qb6 {[%emt 0:01:09]} 15. Kh1 {[%emt 0:02:31]} Be6 $15 {[%emt 0:12:12]} 16. f4 {[%emt 0:07:11]} exf4 {[%emt 0:07:20]} 17. Rxf4 {[%emt 0:01:06]} Nd7 {[%emt 0:00:15]} 18. Nf3 {[%emt 0:00:21]} Qc5 {[%emt 0:16:21]} 19. Bd4 {[%emt 0:04:54]} Qc7 {[%emt 0:00:28]} 20. Bb2 {[%emt 0:15:44]} Ne5 {[%emt 0:06:14]} 21. Qd2 {[%emt 0:06:29]} Bg5 {[%emt 0:14:05]} 22. Nxg5 {[%emt 0:00:28]} hxg5 {[%emt 0:00:05]} 23. Rf2 {[%emt 0:00:24]} f6 {[%emt 0:01:32]} 24. a4 {[%emt 0:01:32]} Qc6 {[%emt 0:01:51]} 25. axb5 {[%emt 0:01:12]} axb5 {[%emt 0:00:14]} 26. Qd4 {[%emt 0:00:32]} Rfd8 {[%emt 0:00:21]} 27. Rd2 {[%emt 0:01:15]} Rd7 {[%emt 0:02:18]} 28. h3 {[%emt 0:00:27]} Qb7 {[%emt 0:01:55]} 29. Rad1 {[%emt 0:01:24]} Nc6 {[%emt 0:00:33]} 30. Qd3 {[%emt 0:00:04]} Nb4 {[%emt 0:00:51]} 31. Qe2 {[%emt 0:02:48]} Rcd8 {[%emt 0:02:43]} 32. Ba3 {[%emt 0:00:56]} Na6 {[%emt 0:00:15]} 33. Bxd6 {[%emt 0:01:52]} Qxe4 {[%emt 0:01:07]} 34. Qxb5 {[%emt 0:00:10]} Nb8 {[%emt 0:01:09]} 35. Bxb8 {[%emt 0:02:02]} Rxd2 {[%emt 0:00:26]} 36. Rxd2 {[%emt 0:00:03]} Rxd2 {[%emt 0:00:11]} 37. Qe8+ {[%emt 0:00:05]} Kh7 {[%emt 0:00:07]} 38. Qh5+ {[%emt 0:00:21]} Kg8 {[%emt 0:00:03]} 39. Qe8+ {[%emt 0:00:14]} Kh7 {[%emt 0:00:04]} 1/2-1/2

[Event "47th GRE-chT 2019"]
[Site "Patra"]
[Date "2019.07.03"]
[Round "2.4"]
[White "Kanakaris, Georgios"]
[Black "Poulopoulos, Ioannis"]
[Result "1/2-1/2"]
[ECO "D37"]
[WhiteElo "2409"]
[BlackElo "2260"]
[Annotator "NA"]
[PlyCount "65"]
[EventDate "2019.07.02"]
[EventCountry "GRE"]
[SourceTitle "playchess.com"]
[Source "ChessBase"]
[SourceQuality "1"]
[TimeControl "5400+30"]

1. Nf3 {[%emt 0:00:00]} Nf6 {[%emt 0:00:00]} 2. c4 {[%emt 0:00:00]} e6 {[%emt 0:00:14]} 3. d4 {[%emt 0:00:19]} a6 {[%emt 0:05:58]} 4. Nc3 {[%emt 0:01:18]} d5 {[%emt 0:04:14]} 5. cxd5 {[%emt 0:00:15]} exd5 {[%emt 0:00:14]} 6. Bg5 {[%emt 0:01:44] D37: Queen's Gambit Declined: 5 Bf4} Be6 {[%emt 0:00:49]} 7. e3 {[%emt 0:02:09]} Nbd7 {[%emt 0:05:16]} 8. Bd3 {[%emt 0:06:12]} h6 {[%emt 0:01:44]} 9. Bh4 {[%emt 0:00:34]} g5 {[%emt 0:00:44]} 10. Bg3 {[%emt 0:00:27]} Nh5 {[%emt 0:21:15]} 11. e4 {[%emt 0:13:46]} (11. Ne2 Nxg3 12. Nxg3 {1-0 (61) Leko,P (2679)-Caruana,F (2832) Germany 2019}) 11... Nxg3 $146 {[%emt 0:00:09]} ({Predecessor:} 11... dxe4 12. Bxe4 Nxg3 {½-½ (47) Checa,N (2400)-Garcia Cardenas,P (2424) chess.com INT 2017}) 12. hxg3 {[%emt 0:05:06]} dxe4 {[%emt 0:00:05]} 13. Bxe4 {[%emt 0:00:14]} c6 {[%emt 0:01:41]} 14. d5 {[%emt 0:00:40]} cxd5 {[%emt 0:00:40]} 15. Bxd5 {[%emt 0:03:34]} Bxd5 {[%emt 0:10:21]} 16. Qxd5 {[%emt 0:08:06]} Qe7+ {[%emt 0:00:39]} 17. Kf1 {[%emt 0:00:59]} O-O-O {[%emt 0:14:18]} 18. Re1 {[%emt 0:04:07]} Qf6 {[%emt 0:06:18]} 19. Qc4+ $11 {[%emt 0:02:02]} Kb8 {[%emt 0:07:28]} 20. g4 {[%emt 0:09:58]} Bg7 {[%emt 0:02:31]} 21. Rh3 {[%emt 0:02:00]} Rhe8 {[%emt 0:02:24]} 22. Rxe8 {[%emt 0:00:09]} Rxe8 {[%emt 0:07:39]} 23. Rg3 {[%emt 0:11:23]} Nb6 {[%emt 0:01:21]} 24. Qb3 {[%emt 0:00:44]} Qf4 {[%emt 0:03:28]} 25. Kg1 {[%emt 0:06:58]} Nc4 {[%emt 0:00:08]} 26. Qc2 {[%emt 0:02:10]} h5 {[%emt 0:01:08]} 27. Nd5 {[%emt 0:05:55]} Qe4 {[%emt 0:00:07]} 28. Qxe4 {[%emt 0:00:07]} Rxe4 {[%emt 0:01:08]} 29. gxh5 {[%emt 0:00:32]} g4 {[%emt 0:01:44]} 30. h6 {[%emt 0:02:30]} Bxh6 {[%emt 0:00:13]} 31. Nf6 {[%emt 0:00:51]} Re2 {[%emt 0:00:09]} 32. Rxg4 {[%emt 0:00:15]} Nxb2 {[%emt 0:01:04]} 33. Ne5 {[%emt 0:03:49]} 1/2-1/2

[Event "47th GRE-chT 2019"]
[Site "Patra"]
[Date "2019.07.03"]
[Round "2.4"]
[White "Tsekmes, Dimitrios"]
[Black "Mavrikakis, Georgios"]
[Result "1/2-1/2"]
[ECO "B01"]
[WhiteElo "2172"]
[BlackElo "2022"]
[Annotator "NA"]
[PlyCount "106"]
[EventDate "2019.07.02"]
[EventCountry "GRE"]
[SourceTitle "playchess.com"]
[Source "ChessBase"]
[SourceQuality "1"]
[TimeControl "5400+30"]

1. e4 {[%emt 0:00:00]} d5 {[%emt 0:00:00]} 2. exd5 {[%emt 0:00:00]} Qxd5 {[%emt 0:00:00]} 3. Nc3 {[%emt 0:00:00]} Qa5 {[%emt 0:00:00]} 4. d4 {[%emt 0:00:08]} Nf6 {[%emt 0:00:00]} 5. Bc4 {[%emt 0:00:22]} c6 {[%emt 0:00:05]} 6. Bd2 {[%emt 0:00:33]} Bf5 {[%emt 0:01:05]} 7. Nf3 {[%emt 0:00:38]} e6 {[%emt 0:00:11]} 8. Qe2 {[%emt 0:18:09]} Bb4 {[%emt 0:00:49]} 9. O-O-O {[%emt 0:20:58]} Nbd7 {[%emt 0:00:37]} 10. a3 {[%emt 0:06:21]} Bxc3 {[%emt 0:00:20]} 11. Bxc3 {[%emt 0:00:04]} Qc7 {[%emt 0:00:11]} 12. Ne5 {[%emt 0:03:17]} Nxe5 {[%emt 0:04:12] B01: Scandinavian Defence} (12... Nd5 13. Bd2 Nxe5 14. dxe5 h6 15. g4 Bh7 16. h4 O-O-O 17. h5 c5 18. g5 Bf5 19. gxh6 gxh6 20. Rhg1 {½-½ (33) Gomez,J (2460)-Megaranto,S (2523) Ulaanbaatar 2019}) 13. Qxe5 {[%emt 0:04:57]} Qxe5 {[%emt 0:03:21]} 14. dxe5 {[%emt 0:00:03]} Nd5 {[%emt 0:00:35]} 15. Bd2 {[%emt 0:00:37]} O-O-O {[%emt 0:02:06]} 16. Be2 {[%emt 0:01:52]} c5 {[%emt 0:03:31]} 17. b3 $146 {[%emt 0:00:58]} ({Predecessor:} 17. Bg5 Rd7 18. c4 Nb6 19. Be3 Rxd1+ 20. Rxd1 {½-½ (37) Bowmer,K (2090)-McKerracher,D (1973) Aberystwyth 2014}) 17... h6 {[%emt 0:03:34]} 18. Kb2 {[%emt 0:01:46]} Rd7 {[%emt 0:02:27]} 19. c4 {[%emt 0:01:24]} Ne7 {[%emt 0:03:30]} 20. Be3 {[%emt 0:00:36]} b6 {[%emt 0:01:00]} 21. Rxd7 {[%emt 0:01:22]} Kxd7 {[%emt 0:00:08]} 22. Kc3 {[%emt 0:00:54]} Nc6 {[%emt 0:04:38]} 23. f4 {[%emt 0:01:31]} a5 {[%emt 0:00:52]} 24. Bf3 $16 {[%emt 0:07:40]} Kc7 {[%emt 0:01:21]} 25. Rd1 {[%emt 0:01:35]} Rd8 {[%emt 0:01:54]} 26. Rxd8 {[%emt 0:00:08]} Nxd8 {[%emt 0:00:08]} 27. b4 {[%emt 0:00:04]} axb4+ {[%emt 0:15:30]} 28. axb4 {[%emt 0:00:18]} cxb4+ {[%emt 0:00:20]} 29. Kxb4 {[%emt 0:00:26]} Nc6+ {[%emt 0:00:18]} 30. Kc3 {[%emt 0:01:45]} Nb8 {[%emt 0:04:08]} 31. g4 {[%emt 0:02:13]} Bg6 {[%emt 0:01:01]} 32. Bc1 {[%emt 0:02:32]} Na6 {[%emt 0:02:46]} 33. Ba3 {[%emt 0:00:27]} Nc5 {[%emt 0:00:12]} 34. Bd1 {[%emt 0:00:19]} Bb1 {[%emt 0:12:32]} 35. Kd4 {[%emt 0:00:47]} Nd7 {[%emt 0:01:40]} 36. Bd6+ {[%emt 0:00:53]} Kc8 {[%emt 0:00:39]} 37. Bf3 {[%emt 0:00:52]} g6 {[%emt 0:00:42]} 38. Kc3 {[%emt 0:01:08]} Kd8 {[%emt 0:04:08]} 39. h4 {[%emt 0:00:16]} Ke8 {[%emt 0:01:39]} 40. Bc7 {[%emt 0:00:00]} Ke7 {[%emt 0:00:00]} 41. Bc6 {[%emt 0:00:00]} Ke8 {[%emt 0:00:00]} 42. Kb4 {[%emt 0:00:00]} Ke7 {[%emt 0:00:00]} 43. Ba4 {[%emt 0:00:00]} Bd3 {[%emt 0:00:00]} 44. Kb5 {[%emt 0:00:00]} f6 {[%emt 0:00:00]} 45. exf6+ {[%emt 0:06:43]} Nxf6 {[%emt 0:00:00]} 46. Bxb6 {[%emt 0:00:43]} Nxg4 {[%emt 0:00:00]} 47. Bd4 {[%emt 0:01:11]} e5 {[%emt 0:00:00]} 48. fxe5 {[%emt 0:05:05]} Ke6 {[%emt 0:00:00]} 49. Kb4 {[%emt 0:01:07]} Nxe5 {[%emt 0:00:00]} 50. c5 {[%emt 0:00:35]} g5 {[%emt 0:00:00]} 51. hxg5 {[%emt 0:01:56]} hxg5 {[%emt 0:00:00]} 52. Bb3+ {[%emt 0:00:30]} Kf5 {[%emt 0:00:00]} 53. Kc3 {[%emt 0:00:46]} Bb5 {[%emt 0:00:00]} 1/2-1/2

[Event "47th GRE-chT 2019"]
[Site "Patra"]
[Date "2019.07.03"]
[Round "2.5"]
[White "Szczepkowska, Karina"]
[Black "Kantane, Anna"]
[Result "1-0"]
[ECO "E70"]
[WhiteElo "2425"]
[BlackElo "2288"]
[Annotator "NA"]
[PlyCount "67"]
[EventDate "2019.07.02"]
[EventCountry "GRE"]
[SourceTitle "playchess.com"]
[Source "ChessBase"]
[SourceQuality "1"]
[TimeControl "5400+30"]

1. d4 {[%emt 0:00:00]} Nf6 {[%emt 0:00:00]} 2. c4 {[%emt 0:00:00]} g6 {[%emt 0:00:00]} 3. Nc3 {[%emt 0:01:09]} Bg7 {[%emt 0:00:01]} 4. e4 {[%emt 0:01:23]} O-O {[%emt 0:00:09]} 5. Nf3 {[%emt 0:00:30]} c6 {[%emt 0:00:29]} 6. Bd3 {[%emt 0:04:11]} d6 {[%emt 0:00:10]} 7. h3 {[%emt 0:00:27]} e5 {[%emt 0:04:31]} 8. d5 {[%emt 0:04:16]} cxd5 {[%emt 0:06:56]} 9. cxd5 {[%emt 0:00:15]} Nh5 {[%emt 0:00:21]} 10. Bg5 {[%emt 0:12:19]} Bf6 {[%emt 0:11:42]} 11. Bh6 {[%emt 0:09:14]} Bg7 {[%emt 0:00:10]} 12. Bg5 {[%emt 0:00:07]} Bf6 {[%emt 0:00:07]} 13. Be3 {[%emt 0:00:04]} Bg7 {[%emt 0:25:42]} 14. Rc1 {[%emt 0:04:48]} Na6 {[%emt 0:09:41]} 15. g3 $11 {[%emt 0:24:15]} Nc5 {[%emt 0:02:43]} 16. Be2 {[%emt 0:03:29]} f5 {[%emt 0:07:07]} 17. exf5 {[%emt 0:08:41]} gxf5 {[%emt 0:00:16]} 18. Ng5 {[%emt 0:02:52]} f4 {[%emt 0:03:54]} 19. Bxc5 {[%emt 0:00:59]} Qxg5 {[%emt 0:05:29]} 20. Ne4 {[%emt 0:05:11]} Qg6 {[%emt 0:02:19]} 21. Nxd6 {[%emt 0:00:11]} fxg3 {[%emt 0:02:22]} 22. Bxh5 {[%emt 0:05:18]} gxf2+ {[%emt 0:00:46]} 23. Kf1 {[%emt 0:07:12]} Qh6 {[%emt 0:14:18]} 24. Nxc8 {[%emt 0:03:07]} Raxc8 {[%emt 0:00:05]} 25. Bg4 {[%emt 0:00:43]} Rxc5 {[%emt 0:02:21]} 26. Rxc5 {[%emt 0:00:22]} Qa6+ {[%emt 0:00:42]} 27. Kg2 {[%emt 0:01:42]} Qxa2 {[%emt 0:00:34]} 28. Rc2 {[%emt 0:00:29]} e4 {[%emt 0:00:27]} 29. Be6+ {[%emt 0:00:39]} Kh8 {[%emt 0:00:02]} 30. Qe2 {[%emt 0:00:24]} Qa4 {[%emt 0:00:46]} 31. Rc4 {[%emt 0:00:21]} Qe8 {[%emt 0:00:17]} 32. Rxe4 {[%emt 0:00:27]} Qg6+ {[%emt 0:00:40]} 33. Rg4 {[%emt 0:00:08]} Qf6 {[%emt 0:00:50]} 34. Rf1 {[%emt 0:00:30]} 1-0

[Event "47th GRE-chT 2019"]
[Site "Patra"]
[Date "2019.07.03"]
[Round "2.5"]
[White "Stoumbou, Eleni"]
[Black "Paehtz, Elisabeth"]
[Result "0-1"]
[ECO "B01"]
[WhiteElo "1820"]
[BlackElo "2473"]
[Annotator "ChessBase"]
[PlyCount "120"]
[EventDate "2019.07.02"]
[EventCountry "GRE"]
[SourceTitle "playchess.com"]
[Source "ChessBase"]
[SourceQuality "1"]
[TimeControl "5400+30"]

1. e4 {[%emt 0:00:00]} d5 {[%emt 0:00:00]} 2. exd5 {[%emt 0:00:00]} Qxd5 {[%emt 0:00:00]} 3. Nc3 {[%emt 0:00:16]} Qd6 {[%emt 0:00:00]} 4. d4 {[%emt 0:00:21]} Nf6 {[%emt 0:00:00]} 5. Bc4 {[%emt 0:05:35]} a6 {[%emt 0:01:09]} 6. Nge2 {[%emt 0:12:12]} Qc6 {[%emt 0:08:01]} 7. Qd3 {[%emt 0:10:42]} Qxg2 {[%emt 0:00:11]} 8. Rg1 {[%emt 0:00:17]} Qh3 {[%emt 0:05:51]} 9. Bf4 {[%emt 0:17:47]} Qxd3 {[%emt 0:03:26]} 10. cxd3 {[%emt 0:02:32]} c6 {[%emt 0:03:52]} 11. d5 {[%emt 0:04:41]} g6 {[%emt 0:10:14]} 12. Na4 {[%emt 0:06:52]} Nfd7 {[%emt 0:02:40]} 13. d4 {[%emt 0:11:29]} b5 {[%emt 0:15:34]} 14. dxc6 {[%emt 0:00:12]} Nxc6 {[%emt 0:00:02]} 15. Bd5 {[%emt 0:00:16]} Bb7 {[%emt 0:00:01]} 16. Nc5 {[%emt 0:08:01]} Nxc5 {[%emt 0:00:13]} 17. dxc5 {[%emt 0:00:04]} Bg7 {[%emt 0:01:47]} 18. O-O-O {[%emt 0:00:18]} Rc8 {[%emt 0:02:58]} 19. b4 {[%emt 0:04:06]} O-O {[%emt 0:05:04]} 20. a3 {[%emt 0:00:34]} Rfd8 {[%emt 0:03:41]} 21. Bg5 {[%emt 0:02:31]} Kf8 {[%emt 0:13:02]} 22. Rge1 {[%emt 0:01:38]} h6 {[%emt 0:04:22]} 23. Be3 {[%emt 0:04:31]} Rxd5 {[%emt 0:05:23]} 24. Rxd5 {[%emt 0:00:17]} Nxb4 {[%emt 0:00:02]} 25. Rd7 {[%emt 0:03:23]} Bc6 {[%emt 0:00:03]} 26. Rd2 {[%emt 0:00:53]} Nd5 {[%emt 0:00:03]} 27. Red1 {[%emt 0:01:05]} e6 {[%emt 0:01:04]} 28. Bf4 {[%emt 0:02:16]} Nxf4 {[%emt 0:03:51]} 29. Nxf4 {[%emt 0:00:05]} Bf6 {[%emt 0:01:37]} 30. Nd3 {[%emt 0:00:57]} Bf3 {[%emt 0:00:06]} 31. Rg1 {[%emt 0:00:26]} Bg5 {[%emt 0:00:20]} 32. Rxg5 {[%emt 0:00:58]} hxg5 {[%emt 0:00:05]} 33. Kb2 {[%emt 0:00:35]} Be4 {[%emt 0:01:45]} 34. Ne5 {[%emt 0:00:22]} f6 {[%emt 0:02:44]} 35. Nd7+ {[%emt 0:00:08]} Ke7 {[%emt 0:00:09]} 36. Nb6 {[%emt 0:01:04]} Rc7 {[%emt 0:01:02]} 37. Kb3 {[%emt 0:00:23]} a5 {[%emt 0:01:49]} 38. Rd1 {[%emt 0:00:37]} f5 {[%emt 0:03:18]} 39. Rc1 {[%emt 0:00:26]} Bd3 {[%emt 0:02:33]} 40. Rc3 {[%emt 0:00:00]} Bf1 {[%emt 0:00:00]} 41. Rc1 {[%emt 0:00:00]} Be2 {[%emt 0:00:00]} 42. a4 {[%emt 0:00:00]} f4 {[%emt 0:00:00]} 43. Re1 {[%emt 0:00:00]} f3 {[%emt 0:00:00]} 44. Rc1 {[%emt 0:00:00]} g4 {[%emt 0:00:00]} 45. axb5 {[%emt 0:00:00]} Bxb5 {[%emt 0:00:00]} 46. Na4 {[%emt 0:00:00]} e5 {[%emt 0:00:00]} 47. Nb2 {[%emt 0:00:00]} Be2 {[%emt 0:00:00]} 48. Ka4 {[%emt 0:00:00]} Rb7 {[%emt 0:00:00]} 49. Rc2 {[%emt 0:00:00]} e4 {[%emt 0:00:00]} 50. c6 {[%emt 0:04:20]} Rb8 {[%emt 0:00:00]} 51. c7 {[%emt 0:01:16]} Rc8 {[%emt 0:00:00]} 52. Rc3 {[%emt 0:00:37]} Kd6 {[%emt 0:00:00]} 53. Nc4+ {[%emt 0:00:47]} Bxc4 {[%emt 0:00:00]} 54. Rxc4 {[%emt 0:00:05]} Rxc7 {[%emt 0:00:00]} 55. Rxe4 {[%emt 0:00:10]} Kd5 {[%emt 0:00:00]} 56. Re8 {[%emt 0:01:00]} Rc2 {[%emt 0:00:00]} 57. Rg8 {[%emt 0:00:20]} Rxf2 {[%emt 0:00:00]} 58. Rxg6 {[%emt 0:00:09]} Rg2 {[%emt 0:00:15]} 59. Kxa5 {[%emt 0:00:38]} f2 {[%emt 0:00:05]} 60. Rf6 {[%emt 0:00:07]} Rxh2 {[%emt 0:00:05]} 0-1